bitfinex-derivatives/quotes_BTCF0:USTF0_20251209
["timestamp","ask_amount","ask_price","bid_price","bid_amount"]
[1765322535044,0.0494917,92828.0,92827.0,0.11372615]
[1765322539343,0.0117717,92828.0,92827.0,0.07498]
[1765322540144,0.001,92828.0,92827.0,0.07498]
[1765322540346,0.001,92828.0,92827.0,0.13312141]
[1765322540542,0.001,92828.0,92827.0,0.07498]
[1765322541361,0.001,92831.0,92830.0,0.05552]
[1765322541656,0.0107708,92836.0,92835.0,0.07341]
[1765322542242,0.00107713,92840.0,92839.0,0.0662904]
[1765322542443,0.00107713,92840.0,92839.0,0.10500009]
[1765322543158,0.00107713,92840.0,92839.0,0.0662904]
[1765322544759,0.00407713,92840.0,92839.0,0.0662904]
[1765322549163,0.01484743,92840.0,92839.0,0.0662904]
[1765322549554,0.00407713,92840.0,92839.0,0.0662904]
[1765322549863,0.01484743,92840.0,92839.0,0.0662904]
[1765322550064,0.00407713,92840.0,92839.0,0.0662904]
[1765322551846,0.00807713,92840.0,92839.0,0.0662904]
[1765322553252,0.02893713,92840.0,92839.0,0.0662904]
[1765322554066,0.00807713,92840.0,92839.0,0.12419228]
[1765322554265,0.00807713,92840.0,92839.0,0.0662904]
[1765322554462,0.00807713,92840.0,92839.0,0.12419228]
[1765322554967,0.00807713,92840.0,92839.0,0.0662904]
[1765322559368,0.0107679,92861.0,92860.0,0.01417]
[1765322559571,0.0107679,92861.0,92860.0,0.07111]
[1765322559971,0.0685879,92861.0,92860.0,0.07111]
[1765322560662,0.0745879,92861.0,92860.0,0.07111]
[1765322561062,0.0685879,92861.0,92860.0,0.07111]
[1765322561276,0.0725879,92861.0,92860.0,0.07111]
[1765322561470,0.0765879,92861.0,92860.0,0.07111]
[1765322562072,0.0725879,92861.0,92860.0,0.07111]
[1765322562273,0.006,92861.0,92860.0,0.07111]
[1765322562768,0.00107684,92865.0,92864.0,0.05694]
[1765322564379,0.00107684,92865.0,92864.0,0.06094]
[1765322564778,0.00107684,92865.0,92864.0,0.06294]
[1765322565473,0.00107684,92865.0,92864.0,0.0737075]
[1765322565673,0.00107684,92865.0,92864.0,0.06294]
[1765322566577,0.02974684,92865.0,92864.0,0.06294]
[1765322567582,0.00107684,92865.0,92864.0,0.06294]
[1765322567983,0.07032424,92865.0,92864.0,0.06294]
[1765322568483,0.05955684,92865.0,92864.0,0.0737075]
[1765322572292,0.05955684,92865.0,92864.0,0.06294]
[1765322573582,0.05955684,92865.0,92864.0,0.03308]
[1765322573783,0.05955684,92865.0,92864.0,0.02733]
[1765322573980,0.05955684,92865.0,92864.0,0.06168]
[1765322574387,0.05955684,92865.0,92864.0,0.05768]
[1765322574587,0.05955684,92865.0,92864.0,0.06068]
[1765322574786,0.05955684,92865.0,92864.0,0.06168]
[1765322575497,0.05955684,92865.0,92864.0,0.06308]
[1765322579189,0.02974684,92865.0,92864.0,0.06308]
[1765322581295,0.00107684,92865.0,92864.0,0.06308]
[1765322583203,0.00107684,92865.0,92864.0,0.10167437]
[1765322584000,0.00107684,92865.0,92864.0,0.06308]
[1765322584304,0.05776684,92865.0,92864.0,0.06308]
[1765322584494,0.02963684,92865.0,92864.0,0.06308]
[1765322585300,0.00107684,92865.0,92864.0,0.06308]
[1765322585505,0.02963684,92865.0,92864.0,0.06308]
[1765322585806,0.00107684,92865.0,92864.0,0.06308]
[1765322586506,0.02963684,92865.0,92864.0,0.0738475]
[1765322586691,0.05776684,92865.0,92864.0,0.06308]
[1765322588199,0.05776684,92865.0,92864.0,0.12097155]
[1765322589105,0.05776684,92865.0,92864.0,0.06308]
[1765322589403,0.00107684,92865.0,92864.0,0.06308]
[1765322590097,0.05843684,92865.0,92864.0,0.06308]
[1765322604623,0.05843684,92865.0,92864.0,0.06455211]
[1765322605424,0.05843684,92865.0,92864.0,0.06355211]
[1765322605721,0.05843684,92865.0,92864.0,0.06455211]
[1765322606217,0.05843684,92865.0,92864.0,0.0064]
[1765322606520,0.05843684,92865.0,92864.0,0.0636]
[1765322607407,0.05843684,92865.0,92864.0,0.0626]
[1765322607825,0.05843684,92865.0,92864.0,0.03419]
[1765322609225,0.05843684,92865.0,92864.0,0.0626]
[1765322613830,0.05843684,92865.0,92864.0,0.03419]
[1765322614032,0.05843684,92865.0,92864.0,0.0626]
[1765322614224,0.05843684,92865.0,92864.0,0.03419]
[1765322614425,0.05843684,92865.0,92864.0,0.0626]
[1765322616626,0.05843684,92865.0,92864.0,0.03419]
[1765322616932,0.05843684,92865.0,92864.0,0.0626]
[1765322617431,0.05843684,92865.0,92864.0,0.03419]
[1765322617730,0.05843684,92865.0,92864.0,0.0626]
[1765322620032,0.05843684,92865.0,92864.0,0.03419]
[1765322620232,0.05843684,92865.0,92864.0,0.10135871]
[1765322622632,0.05843684,92865.0,92864.0,0.11760871]
[1765322629840,0.05843684,92865.0,92864.0,0.11360871]
[1765322630042,0.05843684,92865.0,92864.0,0.11660871]
[1765322632939,0.00107684,92865.0,92864.0,0.07785]
[1765322633646,0.05640684,92865.0,92864.0,0.07785]
[1765322633940,0.00107684,92865.0,92864.0,0.07785]
[1765322635038,0.00107684,92865.0,92864.0,0.0886175]
[1765322635244,0.00107684,92865.0,92864.0,0.07785]
[1765322636234,0.02880684,92865.0,92864.0,0.07785]
[1765322636433,0.00107684,92865.0,92864.0,0.07785]
[1765322637742,0.05640684,92865.0,92864.0,0.07785]
[1765322640742,0.05640684,92865.0,92864.0,0.13598409]
[1765322642846,0.05640684,92865.0,92864.0,0.07785]
[1765322655653,0.00107684,92865.0,92864.0,0.07785]
[1765322659559,0.05697684,92865.0,92864.0,0.07785]
[1765322662061,0.0666683,92857.0,92856.0,0.07284]
[1765322662363,0.0559,92852.0,92851.0,0.05883161]
[1765322665358,0.0559,92852.0,92851.0,0.06183161]
[1765322665961,0.0559,92852.0,92851.0,0.09956738]
[1765322666360,0.0559,92852.0,92851.0,0.06083161]
[1765322666662,0.0559,92852.0,92851.0,0.09956738]
[1765322667256,0.0559,92852.0,92851.0,0.06083161]
[1765322668161,0.0559,92852.0,92851.0,0.05883161]
[1765322668363,0.0559,92852.0,92851.0,0.06183161]
[1765322668871,0.0559,92852.0,92851.0,0.06083161]
[1765322669166,0.0559,92852.0,92851.0,0.05983161]
[1765322669365,0.0559,92852.0,92851.0,0.06083161]
[1765322672060,0.0559,92852.0,92851.0,0.05883161]
[1765322672256,0.0559,92852.0,92851.0,0.06083161]
[1765322672661,0.0559,92852.0,92851.0,0.05883161]
[1765322672857,0.0559,92852.0,92851.0,0.06083161]
[1765322673071,0.06445,92852.0,92851.0,1e-08]
[1765322673570,0.06445,92852.0,92840.0,0.03873577]
[1765322673571,0.0568,92841.0,92840.0,0.03873577]
[1765322673763,0.0675707,92837.0,92836.0,0.05783]
[1765322675368,0.0675707,92837.0,92836.0,0.05883]
[1765322678680,0.0675707,92837.0,92836.0,0.06083]
[1765322690061,0.0675707,92837.0,92836.0,0.003]
[1765322690875,0.0675707,92837.0,92836.0,0.06083]
[1765322702479,0.0675707,92837.0,92836.0,0.03148]
[1765322702678,0.0675707,92837.0,92836.0,0.07541]
[1765322704184,0.0675707,92837.0,92836.0,0.11414577]
[1765322712192,0.0675707,92837.0,92836.0,0.07541]
[1765322713403,0.0675707,92837.0,92836.0,0.04178165]
[1765322713691,0.0675707,92837.0,92836.0,0.03167]
[1765322713890,0.0675707,92837.0,92836.0,0.06009]
[1765322715490,0.0675707,92837.0,92836.0,0.003]
[1765322715691,0.0675707,92837.0,92836.0,0.03167]
[1765322715991,0.0675707,92837.0,92836.0,0.06009]
[1765322717286,0.0675707,92837.0,92836.0,0.07733]
[1765322725292,0.0107707,92837.0,92836.0,0.07733]
[1765322725492,0.0107707,92837.0,92836.0,0.11611165]
[1765322726099,0.0107704,92840.0,92836.0,0.0310108]
[1765322726397,0.0107704,92840.0,92839.0,0.09399754]
[1765322726699,0.0107704,92840.0,92839.0,0.05523]
[1765322727291,0.0107704,92840.0,92839.0,0.09399226]
[1765322727695,0.0107704,92840.0,92839.0,0.05523]
[1765322728098,0.0107704,92840.0,92839.0,0.05623]
[1765322728301,0.0107704,92840.0,92839.0,0.05823]
[1765322729697,0.00016161,92846.0,92845.0,0.0659997]
[1765322732196,0.00016161,92846.0,92845.0,0.0699997]
[1765322732400,0.0443181,92865.0,92845.0,0.0699997]
[1765322732401,0.0107678,92862.0,92861.0,0.05523]
[1765322734498,0.1127056,92865.0,92864.0,0.07282]
[1765322736905,0.1127056,92865.0,92864.0,0.07482]
[1765322737106,0.1127056,92865.0,92864.0,0.07582]
[1765322737605,0.1127056,92865.0,92864.0,0.03072]
[1765322737998,0.1127056,92865.0,92864.0,0.05823]
[1765322739903,0.0839356,92865.0,92864.0,0.07582]
[1765322740109,0.01184434,92865.0,92864.0,0.07582]
[1765322740301,0.02992684,92865.0,92864.0,0.07582]
[1765322740508,0.05869684,92865.0,92864.0,0.07582]
[1765322741007,0.00107684,92865.0,92864.0,0.07582]
[1765322749814,0.02992684,92865.0,92864.0,0.07582]
[1765322750111,0.00107684,92865.0,92864.0,0.07582]
[1765322751909,0.02992684,92865.0,92864.0,0.07582]
[1765322752815,0.05869684,92865.0,92864.0,0.07582]
[1765322753517,0.00107684,92865.0,92864.0,0.0865875]
[1765322753812,0.00107684,92865.0,92864.0,0.07582]
[1765322755615,0.00107684,92865.0,92864.0,0.0865875]
[1765322757515,0.01184424,92865.0,92864.0,0.0865875]
[1765322757715,0.00107684,92865.0,92864.0,0.0865875]
[1765322759617,0.03069684,92865.0,92864.0,0.07582]
[1765322759813,0.05883684,92865.0,92864.0,0.07582]
[1765322760920,0.05883684,92865.0,92864.0,0.11446024]
[1765322761417,0.06960424,92865.0,92864.0,0.07582]
[1765322762323,0.06960424,92865.0,92864.0,0.11446024]
[1765322763324,0.06960424,92865.0,92864.0,0.07582]
[1765322770830,0.06960424,92865.0,92864.0,0.13394931]
[1765322772930,0.06960424,92865.0,92864.0,0.07582]
[1765322773136,0.06960424,92865.0,92864.0,0.05823]
[1765322773320,0.06960424,92865.0,92864.0,0.03072]
[1765322774025,0.06960424,92865.0,92864.0,0.05911]
[1765322775034,0.07060424,92865.0,92864.0,0.05811]
[1765322775330,0.07060424,92865.0,92864.0,0.05611]
[1765322775528,0.07060424,92865.0,92864.0,0.0727]
[1765322775834,0.06960424,92865.0,92864.0,0.0727]
[1765322776036,0.06960424,92865.0,92864.0,0.0737]
[1765322776634,0.06960424,92865.0,92864.0,0.0757]
[1765322777225,0.06960424,92865.0,92864.0,0.0747]
[1765322778135,0.06960424,92865.0,92864.0,0.0737]
[1765322780436,0.06960424,92865.0,92864.0,0.0747]
[1765322781228,0.06960424,92865.0,92864.0,0.0757]
[1765322789145,0.06960424,92865.0,92864.0,0.05911]
[1765322789348,0.06960424,92865.0,92864.0,0.03072]
[1765322789743,0.06960424,92865.0,92864.0,0.06]
[1765322790145,0.06960424,92865.0,92864.0,0.07565]
[1765322790944,0.06960424,92865.0,92864.0,0.07365]
[1765322791143,0.06960424,92865.0,92864.0,0.07465]
[1765322793148,0.06960424,92865.0,92864.0,0.058]
[1765322795344,0.06960424,92865.0,92864.0,0.057]
[1765322795955,0.06960424,92865.0,92864.0,0.058]
[1765322797041,0.06960424,92865.0,92864.0,0.07465]
[1765322802455,0.06960424,92865.0,92864.0,0.058]
[1765322802655,0.06960424,92865.0,92864.0,0.02872]
[1765322803157,0.06960424,92865.0,92864.0,0.058]
[1765322806159,0.06960424,92865.0,92864.0,0.001]
[1765322806459,0.06960424,92865.0,92864.0,0.05859]
[1765322812560,0.00107684,92865.0,92864.0,0.11400756]
[1765322812754,0.00107684,92865.0,92864.0,0.07524]
[1765322819553,0.05822684,92865.0,92864.0,0.07524]
[1765322820364,0.05822684,92865.0,92864.0,0.13335043]
[1765322821067,0.05822684,92865.0,92864.0,0.07524]
[1765322821281,0.05822684,92865.0,92864.0,0.11669599]
[1765322821468,0.05822684,92865.0,92864.0,0.001]
[1765322821673,0.05822684,92865.0,92864.0,0.05732]
[1765322822476,0.05922684,92865.0,92864.0,0.05732]
[1765322822875,0.05922684,92865.0,92864.0,0.05632]
[1765322826977,0.05922684,92865.0,92864.0,0.0734]
[1765322834479,0.05922684,92865.0,92864.0,0.05632]
[1765322834982,0.05922684,92865.0,92864.0,0.0734]
[1765322838382,0.05922684,92865.0,92864.0,0.05632]
[1765322839087,0.05922684,92865.0,92864.0,0.0734]
[1765322849298,0.00207684,92865.0,92864.0,0.0734]
[1765322849796,0.00207684,92865.0,92864.0,0.13150599]
[1765322849993,0.00207684,92865.0,92864.0,0.0734]
[1765322850701,0.00207684,92865.0,92864.0,0.0754]
[1765322850887,0.00107684,92865.0,92864.0,0.0764]
[1765322851193,0.00107684,92865.0,92864.0,0.0774]
[1765322851590,0.00107684,92865.0,92864.0,0.0764]
[1765322851897,0.00107684,92865.0,92864.0,0.0784]
[1765322859298,0.04994,92874.0,92864.0,0.0784]
[1765322859299,0.04994,92874.0,92873.0,0.02768]
[1765322859494,0.00494,92874.0,92873.0,0.0657165]
[1765322859694,0.0107661,92876.0,92873.0,0.0657165]
[1765322859900,0.0107661,92876.0,92875.0,0.0657162]
[1765322860296,0.0107661,92876.0,92875.0,0.4357162]
[1765322860997,0.0107661,92876.0,92875.0,0.49372081]
[1765322861205,0.0107661,92876.0,92875.0,0.49472081]
[1765322861391,0.0107661,92876.0,92875.0,0.4397162]
[1765322861908,0.0107661,92876.0,92875.0,0.0697162]
[1765322865005,0.0107661,92876.0,92875.0,0.4297162]
[1765322865206,0.0107661,92876.0,92875.0,0.1497162]
[1765322865604,0.0107661,92876.0,92875.0,0.0697162]
[1765322869798,0.0378161,92876.0,92875.0,0.0697162]
[1765322869999,0.0107661,92876.0,92875.0,0.0697162]
[1765322871307,0.0582352,92884.0,92883.0,0.05495]
[1765322871808,0.0107652,92884.0,92883.0,0.05495]
[1765322873803,0.04209762,92885.0,92884.0,0.07272]
[1765322876207,0.04209762,92885.0,92884.0,0.11135452]
[1765322876411,0.04209762,92885.0,92884.0,0.07272]
[1765322876715,0.04209762,92885.0,92884.0,0.11136197]
[1765322877099,0.04209762,92885.0,92884.0,0.07272]
[1765322877604,0.04209762,92885.0,92884.0,0.07472]
[1765322878199,0.04209762,92885.0,92884.0,0.13272461]
[1765322878402,0.04209762,92885.0,92884.0,0.13372461]
[1765322879210,0.04209762,92885.0,92884.0,0.07572]
[1765322881005,0.10010762,92885.0,92884.0,0.05864]
[1765322881615,0.10010762,92885.0,92884.0,0.003]
[1765322882007,0.10010762,92885.0,92884.0,1e-07]
[1765322882216,0.04209762,92885.0,92884.0,1e-07]
[1765322882410,0.10010762,92885.0,92884.0,0.02900594]
[1765322882612,0.10010762,92885.0,92884.0,0.08526594]
[1765322883009,0.10010762,92885.0,92884.0,0.08526584]
[1765322883209,0.10210762,92885.0,92884.0,0.08526584]
[1765322883409,0.10210762,92885.0,92884.0,0.05626]
[1765322883718,0.10310762,92885.0,92884.0,0.05626]
[1765322884913,0.0687756,92881.0,92880.0,0.03866623]
[1765322885214,0.0687756,92881.0,92880.0,0.06696623]
[1765322886318,0.0687756,92881.0,92880.0,0.09492623]
[1765322886319,0.0697756,92881.0,92880.0,0.09492623]
[1765322886521,0.0717756,92881.0,92880.0,0.09492623]
[1765322887115,0.0717756,92881.0,92880.0,0.05626]
[1765322887725,0.0707756,92881.0,92880.0,0.05626]
[1765322888116,0.0687756,92881.0,92880.0,0.05626]
[1765322888320,0.0697756,92881.0,92880.0,0.05626]
[1765322891523,0.0697756,92881.0,92880.0,0.05726]
[1765322891716,0.0687756,92881.0,92880.0,0.05726]
[1765322892226,0.0687756,92881.0,92880.0,0.05626]
[1765322894414,0.0697756,92881.0,92880.0,0.0283]
[1765322894815,0.0697756,92881.0,92880.0,0.05617]
[1765322895522,0.0687756,92881.0,92880.0,0.05617]
[1765322895716,0.0697756,92881.0,92880.0,0.05617]
[1765322897832,0.0687756,92881.0,92880.0,0.05617]
[1765322898033,0.0697756,92881.0,92880.0,0.05617]
[1765322900839,0.0687756,92881.0,92880.0,0.05617]
[1765322902934,0.0687756,92881.0,92880.0,0.05717]
[1765322903438,0.0687756,92881.0,92880.0,0.05617]
[1765322903736,0.05726,92884.0,92883.0,0.05847]
[1765322904239,0.05726,92884.0,92883.0,0.0971795]
[1765322904939,0.05726,92884.0,92883.0,0.0692353]
[1765322905138,0.05826,92884.0,92883.0,0.0692353]
[1765322905736,0.0107651,92885.0,92884.0,0.07532]
[1765322906938,0.0107651,92885.0,92884.0,0.07632]
[1765322908037,0.00107655,92890.0,92884.0,0.07632]
[1765322908343,0.0107648,92888.0,92887.0,0.11653462]
[1765322910343,0.05833655,92890.0,92889.0,0.05847]
[1765322911542,0.05933655,92890.0,92889.0,0.05847]
[1765322912545,0.05933655,92890.0,92889.0,0.06909489]
[1765322915647,0.00207655,92890.0,92889.0,0.06909489]
[1765322916042,0.00207655,92890.0,92889.0,0.12715001]
[1765322916437,0.00207655,92890.0,92889.0,0.50715001]
[1765322916630,0.00207655,92890.0,92889.0,0.44909489]
[1765322917543,0.00107655,92890.0,92889.0,0.44909489]
[1765322923531,0.05833655,92890.0,92889.0,0.20909489]
[1765322924234,0.02876655,92890.0,92889.0,0.20909489]
[1765322924438,0.00107655,92890.0,92889.0,0.20909489]
[1765322926333,0.02876655,92890.0,92889.0,0.20909489]
[1765322926542,0.00107655,92890.0,92889.0,0.20909489]
[1765322927540,0.00107655,92890.0,92889.0,0.47909489]
[1765322929856,0.0476,92892.0,92891.0,0.05847]
[1765322930040,0.0476,92892.0,92891.0,0.45847]
[1765322930435,0.02257674,92892.0,92891.0,0.45847]
[1765322930651,0.01930479,92892.0,92891.0,0.45847]
[1765322930950,0.05833626,92915.0,92914.0,0.05847]
[1765322931941,0.05726,92913.0,92912.0,0.02898844]
[1765322932451,0.0680223,92909.0,92908.0,0.09712125]
[1765322933354,0.0680223,92909.0,92908.0,0.09420125]
[1765322934347,0.0680223,92909.0,92908.0,0.05555]
[1765322935055,0.0720223,92909.0,92908.0,0.05555]
[1765322946360,0.0720223,92909.0,92908.0,0.11352688]
[1765322949360,0.0720223,92909.0,92908.0,0.12428928]
[1765322949954,0.0720223,92909.0,92908.0,0.11352688]
[1765322951061,0.0690223,92909.0,92907.0,0.05797688]
[1765322951262,0.05517,92908.0,92907.0,0.05797688]
[1765322951661,0.05517,92908.0,92907.0,0.08778688]
[1765322951958,0.05517,92908.0,92907.0,0.11736688]
[1765322952860,0.05517,92908.0,92907.0,0.12812938]
[1765322953062,0.05517,92908.0,92907.0,0.0701525]
[1765322953659,0.05517,92908.0,92907.0,0.05939]
[1765322953857,0.07511,92908.0,92907.0,0.05939]
[1765322958068,0.05817,92908.0,92907.0,0.05939]
[1765322959467,0.003,92908.0,92907.0,0.05939]
[1765322960771,0.002,92908.0,92907.0,0.05939]
[1765322960960,0.0384821,92911.0,92910.0,0.05939]
[1765322961463,0.0384821,92911.0,92910.0,0.0701522]
[1765322961772,0.04716,92914.0,92913.0,0.0701518]
[1765322962076,0.07461,92914.0,92913.0,0.0701518]
[1765322962368,0.05517,92914.0,92913.0,0.05939]
[1765322964175,0.05617,92914.0,92913.0,0.05939]
[1765322966168,0.02872,92914.0,92913.0,0.0701518]
[1765322966365,0.02897,92914.0,92913.0,0.0701518]
[1765322966673,0.05789,92914.0,92913.0,0.0701518]
[1765322969574,0.02897,92914.0,92913.0,0.0701518]
[1765322970168,0.001,92914.0,92913.0,0.0701518]
[1765322972681,0.001,92914.0,92913.0,0.14738094]
[1765322972985,0.00107626,92915.0,92914.0,0.05473]
[1765322973373,0.05796626,92915.0,92914.0,0.05473]
[1765322975279,0.05796626,92915.0,92914.0,0.05573]
[1765322975485,0.05796626,92915.0,92914.0,0.05673]
[1765322977089,0.02904626,92915.0,92914.0,0.05673]
[1765322980199,0.00107626,92915.0,92914.0,0.05673]
[1765322981082,0.01946,92919.0,92918.0,0.05473]
[1765322981485,0.0107609,92921.0,92920.0,0.071941]
[1765322981693,0.0676509,92921.0,92920.0,0.065491]
[1765322981880,0.0387309,92921.0,92920.0,0.082121]
[1765322982080,0.0676509,92921.0,92920.0,0.05473]
[1765322982678,0.0686509,92921.0,92920.0,0.02711]
[1765322983291,0.0686509,92921.0,92900.0,0.129376]
[1765322983292,0.0676514,92917.0,92916.0,0.02711]
[1765322983495,0.0676514,92917.0,92916.0,0.05473]
[1765322984498,0.0676514,92917.0,92916.0,0.05573]
[1765322985089,0.0676514,92917.0,92916.0,0.001]
[1765322986089,0.0676514,92917.0,92916.0,0.02811]
[1765322986891,0.0676514,92917.0,92916.0,0.05573]
[1765322987380,0.0686514,92917.0,92916.0,0.05473]
[1765322988179,0.0676514,92917.0,92916.0,0.05473]
[1765322988789,0.0686514,92917.0,92916.0,0.05473]
[1765322989594,0.0676514,92917.0,92916.0,0.05473]
[1765322989797,0.0686514,92917.0,92916.0,0.05473]
[1765322990184,0.0686514,92917.0,92913.0,0.05802854]
[1765322990185,0.05689,92906.0,92905.0,0.06565422]
[1765322990790,0.0107618,92914.0,92905.0,0.06565422]
[1765322990995,0.0107618,92914.0,92911.0,0.0654921]
[1765322990996,0.05689,92912.0,92911.0,0.0654921]
[1765322992181,0.05689,92912.0,92911.0,0.0664921]
[1765322992398,0.05689,92912.0,92911.0,0.0674921]
[1765322993291,0.02797,92912.0,92911.0,0.0674921]
[1765322993686,0.07391,92912.0,92911.0,0.0674921]
[1765322994396,0.07391,92912.0,92911.0,0.05673]
[1765322994697,0.07391,92912.0,92911.0,0.05895]
[1765322995995,0.07391,92912.0,92911.0,0.05795]
[1765322996595,0.07391,92912.0,92911.0,0.05695]
[1765323001095,0.0674627,92906.0,92905.0,0.13454522]
[1765323001295,0.0674627,92906.0,92905.0,0.00016152]
[1765323001800,0.0567,92905.0,92904.0,0.05807299]
[1765323001995,0.0567,92905.0,92904.0,0.08727299]
[1765323002206,0.0567,92905.0,92904.0,0.0292]
[1765323003200,0.0567,92905.0,92904.0,0.0302]
[1765323003589,0.0567,92905.0,92904.0,0.06889786]
[1765323003794,0.0567,92905.0,92904.0,0.0302]
[1765323003994,0.0567,92905.0,92904.0,0.0312]
[1765323004195,0.0567,92905.0,92904.0,0.06988987]
[1765323005797,0.0567,92905.0,92904.0,0.002]
[1765323006695,0.0757,92900.0,92899.0,0.02901467]
[1765323006897,0.0282433,92900.0,92898.0,0.02901467]
[1765323007101,0.05822,92899.0,92898.0,0.02901467]
[1765323008090,0.0689836,92898.0,92897.0,0.02901467]
[1765323008497,0.0689836,92898.0,92895.0,0.00016144]
[1765323008498,0.05822,92897.0,92896.0,0.02901467]
[1765323009202,0.0864638,92896.0,92895.0,0.02917611]
[1765323010097,0.0864638,92896.0,92895.0,0.00016144]
[1765323010304,0.0864638,92896.0,92895.0,0.00216144]
[1765323011609,0.0864638,92896.0,92895.0,0.00416144]
[1765323017003,0.0864638,92896.0,92895.0,0.03350144]
[1765323018811,0.0864638,92896.0,92895.0,0.06214144]
[1765323024010,0.0864638,92896.0,92895.0,0.06198144]
[1765323024319,0.0864638,92896.0,92895.0,0.03392144]
[1765323027614,0.0864638,92896.0,92895.0,0.00416144]
[1765323028113,0.0864638,92896.0,92895.0,0.03313534]
[1765323029019,0.0864638,92896.0,92895.0,0.09095534]
[1765323029221,0.0864638,92896.0,92895.0,0.06198144]
[1765323029519,0.0864638,92896.0,92895.0,0.03392144]
[1765323032915,0.0864638,92896.0,92895.0,0.00416144]
[1765323033622,0.0864638,92896.0,92895.0,0.03392144]
[1765323034121,0.0864638,92896.0,92895.0,0.04285131]
[1765323034517,0.0583,92890.0,92889.0,0.05807299]
[1765323034722,0.0690653,92883.0,92882.0,0.05807299]
[1765323034922,0.0583,92882.0,92881.0,0.05807299]
[1765323035320,0.0690656,92881.0,92880.0,0.08783299]
[1765323035725,0.0886356,92881.0,92880.0,0.02976]
[1765323037317,0.0906356,92881.0,92880.0,0.02976]
[1765323038516,0.0906356,92881.0,92880.0,0.05782]
[1765323046332,0.0690666,92872.0,92871.0,0.05798144]
[1765323046632,0.0690666,92872.0,92871.0,0.00016144]
[1765323046833,0.0690666,92872.0,92871.0,0.02992144]
[1765323047134,0.0690666,92872.0,92865.0,0.05914983]
[1765323047135,0.0690673,92866.0,92865.0,0.03083684]
[1765323047333,0.0690673,92866.0,92865.0,0.05889684]
[1765323049133,0.0690673,92866.0,92865.0,0.06089684]
[1765323049330,0.0690673,92866.0,92865.0,0.06189684]
[1765323051628,0.0583,92866.0,92865.0,0.06189684]
[1765323051938,0.0583,92866.0,92865.0,0.07266424]
[1765323053949,0.11950637,92880.0,92869.0,0.05679]
[1765323054134,0.11950637,92880.0,92868.0,0.01628]
[1765323054135,0.0393362,92875.0,92874.0,0.05679]
[1765323054529,0.0678362,92875.0,92874.0,0.05679]
[1765323055633,0.0688362,92875.0,92874.0,0.05679]
[1765323057531,0.0403362,92875.0,92874.0,0.05679]
[1765323057930,0.0688362,92875.0,92874.0,0.05679]
[1765323058828,0.0688362,92875.0,92874.0,0.05779]
[1765323059036,0.0678362,92875.0,92874.0,0.05779]
[1765323059735,0.0107662,92875.0,92874.0,0.05779]
[1765323059941,0.10219781,92890.0,92880.0,0.07307]
[1765323060542,0.0107654,92883.0,92880.0,0.07307]
[1765323061128,0.0194085,92881.0,92880.0,0.13114299]
[1765323061323,0.0194085,92881.0,92880.0,0.07307]
[1765323061538,0.0107647,92889.0,92888.0,0.07307]
[1765323061736,0.0107647,92889.0,92880.0,0.01628]
[1765323061737,0.0392651,92885.0,92880.0,0.002]
[1765323061939,0.0678356,92881.0,92880.0,0.05879]
[1765323062139,0.0678356,92881.0,92880.0,0.11681619]
[1765323062343,0.0688356,92881.0,92880.0,0.05879]
[1765323062727,0.0678356,92881.0,92880.0,0.05879]
[1765323062934,0.0678356,92881.0,92880.0,0.05979]
[1765323063330,0.0678356,92881.0,92880.0,0.05879]
[1765323063531,0.0688356,92881.0,92880.0,0.05679]
[1765323065542,0.0678356,92881.0,92880.0,0.05679]
[1765323065740,0.0688356,92881.0,92880.0,0.05679]
[1765323075047,0.0117656,92881.0,92880.0,0.07321]
[1765323075542,0.0679156,92881.0,92880.0,0.05679]
[1765323075938,0.0679156,92881.0,92880.0,0.05779]
[1765323076140,0.0669156,92881.0,92880.0,0.05779]
[1765323076740,0.0669156,92881.0,92880.0,0.05679]
[1765323077052,0.0669156,92881.0,92880.0,0.05779]
[1765323078450,0.0679156,92881.0,92880.0,0.05679]
[1765323081046,0.0679156,92881.0,92880.0,0.02779]
[1765323081353,0.07295,92880.0,92879.0,0.00016152]
[1765323081844,0.07295,92880.0,92879.0,0.05605152]
[1765323082445,0.05615,92874.0,92873.0,0.03871193]
[1765323082647,0.05615,92867.0,92866.0,0.03871193]
[1765323082941,0.0669173,92866.0,92865.0,0.00107684]
[1765323084651,0.0719173,92866.0,92865.0,0.00107684]
[1765323084952,0.0739173,92866.0,92865.0,0.00107684]
[1765323085150,0.0729173,92866.0,92865.0,0.00107684]
[1765323087841,0.0709173,92866.0,92865.0,0.00107684]
[1765323088140,0.0729173,92866.0,92865.0,0.00107684]
[1765323111964,0.0729173,92866.0,92865.0,0.05784684]
[1765323118571,0.0729173,92866.0,92865.0,0.00107684]
[1765323120569,0.0729173,92866.0,92865.0,0.05876684]
[1765323121073,0.006,92866.0,92865.0,0.07991424]
[1765323122359,0.002,92866.0,92865.0,0.07991424]
[1765323122863,0.0691959,92878.0,92877.0,0.05769]
[1765323123375,0.05843,92878.0,92877.0,0.05769]
[1765323123863,0.06043,92878.0,92877.0,0.05769]
[1765323124176,0.002,92878.0,92877.0,0.05769]
[1765323127476,0.002,92878.0,92877.0,0.45769]
[1765323127675,0.00016144,92890.0,92889.0,0.0675646]
[1765323128262,0.02741144,92890.0,92889.0,0.0675646]
[1765323128473,0.05543144,92890.0,92889.0,0.0675646]
[1765323128676,0.05743144,92890.0,92889.0,0.0675646]
[1765323129071,0.06243144,92890.0,92889.0,0.0568]
[1765323129475,0.0660354,92882.0,92881.0,0.0568]
[1765323131577,0.0670354,92882.0,92881.0,0.0568]
[1765323132076,0.0690354,92882.0,92881.0,0.0568]
[1765323132978,0.05827,92882.0,92881.0,0.0568]
[1765323141682,0.0660356,92881.0,92880.0,0.00016152]
[1765323142384,0.0660356,92881.0,92880.0,0.05696152]
[1765323142778,0.0670356,92881.0,92880.0,0.05696152]
[1765323144074,0.0690356,92881.0,92880.0,0.05696152]
[1765323144683,0.05827,92881.0,92880.0,0.05696152]
[1765323152494,0.05827,92881.0,92880.0,0.00016152]
[1765323153193,0.05827,92881.0,92880.0,0.05813152]
[1765323153393,0.05827,92881.0,92880.0,0.02915152]
[1765323153890,0.05827,92881.0,92880.0,0.00016152]
[1765323154092,0.05827,92881.0,92870.0,0.03865994]
[1765323154093,0.0665462,92875.0,92870.0,0.03865994]
[1765323154297,0.0665469,92869.0,92867.0,0.03865994]
[1765323154499,0.0665473,92866.0,92865.0,0.03973678]
[1765323154697,0.0665473,92866.0,92865.0,0.00107684]